fUST/lending_fUST_20240707
["ID","MTS","AMOUNT","RATE_DAILY","PERIOD"]
[331392647,1720332641456,-241.770505,0.0002599,7]
[331392648,1720332641468,-241.770505,0.0002599,7]
[331392649,1720332641477,-151.0,0.0002599,7]
[331392650,1720332641487,-151.0,0.0002599,7]
[331392651,1720332641496,-151.0,0.0002599,7]
[331392652,1720332641506,-270.094897,0.0002599,7]
[331392653,1720332641516,-151.0,0.0002599,7]
[331392654,1720332641525,-1000.0,0.00025999,10]
[331392655,1720332641535,-1000.0,0.00025999,10]
[331392656,1720332641544,-1000.0,0.00025999,10]
[331392657,1720332641553,-1000.0,0.00025999,10]
[331392658,1720332641563,-1000.0,0.00025999,10]
[331392659,1720332641572,-1000.0,0.00025999,10]
[331392660,1720332641582,-211178.69169652,0.00026,2]
[331392661,1720332641591,-284.446953,0.00026,7]
[331392662,1720332641600,-304.110719,0.00026,7]
[331392663,1720332641610,-304.110719,0.00026,7]
[331392664,1720332641619,-257.146742,0.00026,7]
[331392665,1720332641628,-3000.0,0.00026,2]
[331392666,1720332641638,-151.0,0.00026,7]
[331392667,1720332641647,-218.217376,0.00026,7]
[331392668,1720332641657,-218.217376,0.00026,7]
[331392669,1720332641666,-241.770505,0.00026,7]
[331392670,1720332641675,-241.770505,0.00026,7]
[331392671,1720332641685,-151.0,0.00026,7]
[331392672,1720332641694,-151.0,0.00026,7]
[331392673,1720332641704,-151.0,0.00026,7]
[331392674,1720332641716,-199.817352,0.00026,7]
[331392675,1720332641725,-313.357042,0.00026,7]
[331392676,1720332641734,-313.357042,0.00026,7]
[331392677,1720332641744,-3000.0,0.0002601,2]
[331392678,1720332641753,-3000.0,0.0002602,2]
[331392679,1720332641763,-3000.0,0.0002603,2]
[331392680,1720332641772,-3000.0,0.0002604,2]
[331392681,1720332641784,-3000.0,0.0002605,2]
[331392682,1720332641794,-304.110719,0.0002606,7]
[331392683,1720332641803,-304.110719,0.0002606,7]
[331392684,1720332641813,-257.146742,0.0002606,7]
[331392685,1720332641823,-3000.0,0.0002606,2]
[331392686,1720332641833,-151.0,0.0002606,7]
[331392687,1720332641845,-218.217376,0.0002606,7]
[331392688,1720332641855,-218.217375,0.0002606,7]
[331392689,1720332641866,-241.770505,0.0002606,7]
[331392690,1720332641875,-241.770503,0.0002606,7]
[331392691,1720332641885,-151.0,0.0002606,7]
[331392692,1720332641897,-151.0,0.0002606,7]
[331392693,1720332641907,-151.0,0.0002606,7]
[331392694,1720332641917,-3000.0,0.0002607,2]
[331392695,1720332641926,-3000.0,0.0002608,2]
[331392696,1720332641936,-304.110719,0.0002609,7]
[331392697,1720332641945,-304.110719,0.0002609,7]
[331392698,1720332641955,-257.146742,0.0002609,7]
[331392699,1720332641967,-3000.0,0.0002609,2]
[331392700,1720332641976,-3000.0,0.000261,2]
[331392701,1720332641985,-1000.0,0.00026109,10]
[331392702,1720332641995,-3000.0,0.0002611,2]
[331392703,1720332642004,-151.0,0.0002611,7]
[331392704,1720332642014,-151.0,0.0002611,7]
[331392705,1720332642023,-313.357042,0.0002611,7]
[331392706,1720332642033,-313.357045,0.0002611,7]
[331392707,1720332642042,-3000.0,0.0002612,2]
[331392708,1720332642051,-3000.0,0.0002613,2]
[331392709,1720332642061,-3000.0,0.0002614,2]
[331392710,1720332642070,-3000.0,0.0002615,2]
[331392711,1720332642080,-304.110719,0.0002616,7]
[331392714,1720332642089,-304.110719,0.0002616,7]
[331392716,1720332642098,-257.146742,0.0002616,7]
[331392719,1720332642108,-3000.0,0.0002616,2]
[331392720,1720332642117,-3000.0,0.0002617,2]
[331392722,1720332642126,-3000.0,0.0002618,2]
[331392724,1720332642136,-3000.0,0.0002619,2]
[331392727,1720332642145,-3000.0,0.000262,2]
[331392730,1720332642154,-3000.0,0.0002621,2]
[331392732,1720332642164,-3000.0,0.0002622,2]
[331392734,1720332642174,-1000.0,0.00026229,10]
[331392736,1720332642182,-304.110719,0.0002623,7]
[331392738,1720332642191,-304.110719,0.0002623,7]
[331392739,1720332642201,-257.146742,0.0002623,7]
[331392741,1720332642212,-3000.0,0.0002623,2]
[331392743,1720332642221,-3000.0,0.0002624,2]
[331392745,1720332642230,-3000.0,0.0002625,2]
[331392746,1720332642239,-3000.0,0.0002626,2]
[331392748,1720332642250,-3000.0,0.0002627,2]
[331392750,1720332642260,-3000.0,0.0002628,2]
[331392752,1720332642269,-3000.0,0.0002629,2]
[331392754,1720332642279,-304.110719,0.000263,7]
[331392755,1720332642289,-304.110719,0.000263,7]
[331392757,1720332642303,-257.146732,0.000263,7]
[331392758,1720332642312,-3000.0,0.000263,2]
[331392759,1720332642323,-3000.0,0.0002631,2]
[331392760,1720332642333,-3000.0,0.0002632,2]
[331392761,1720332642344,-3000.0,0.0002633,2]
[331392762,1720332642354,-1000.0,0.00026339,10]
[331392763,1720332642365,-3000.0,0.0002634,2]
[331392764,1720332642376,-3000.0,0.0002635,2]
[331392765,1720332642388,-3000.0,0.0002636,2]
[331392766,1720332642398,-304.110719,0.0002637,7]
[331392767,1720332642408,-304.110719,0.0002637,7]
[331392768,1720332642418,-3000.0,0.0002637,2]
[331392769,1720332642429,-3000.0,0.0002638,2]
[331392770,1720332642438,-3000.0,0.0002639,2]
[331392771,1720332642447,-3000.0,0.000264,2]
[331392772,1720332642457,-3000.0,0.0002641,2]
[331392773,1720332642466,-3000.0,0.0002642,2]
[331392774,1720332642475,-3000.0,0.0002643,2]
[331392775,1720332642484,-3000.0,0.0002644,2]
[331392776,1720332642492,-1000.0,0.00026449,10]
[331392777,1720332642501,-3000.0,0.0002645,2]
[331392778,1720332642511,-3042.379392,0.0002646,2]
[331392779,1720332642520,-620.00000185,0.0002646,2]
[331392780,1720332642529,-3000.0,0.000265,2]
[331392781,1720332642538,-3000.0,0.0002651,2]
[331392782,1720332642547,-3000.0,0.0002652,2]
[331392783,1720332642556,-3000.0,0.0002653,2]
[331392784,1720332642566,-3000.0,0.0002654,2]
[331392785,1720332642575,-3000.0,0.0002655,2]
[331392786,1720332642584,-3000.0,0.0002656,2]
[331392787,1720332642594,-3000.0,0.0002657,2]
[331392788,1720332642603,-491.14974063,0.00026574,2]
[331392789,1720332642612,-3000.0,0.0002658,2]
[331392790,1720332642621,-3000.0,0.0002659,2]
[331392791,1720332642630,-3000.0,0.000266,2]
[331392792,1720332642639,-1000.0,0.00026609,10]
[331392793,1720332642649,-3000.0,0.0002661,2]
[331392794,1720332642658,-3000.0,0.0002662,2]
[331392795,1720332642667,-3000.0,0.0002663,2]
[331392796,1720332642676,-3000.0,0.0002664,2]
[331392797,1720332642685,-3000.0,0.0002665,2]
[331392798,1720332642695,-3000.0,0.0002666,2]
[331392799,1720332642704,-3000.0,0.0002667,2]
[331392800,1720332642714,-3000.0,0.0002668,2]
[331392801,1720332642724,-3000.0,0.0002669,2]
[331392802,1720332642733,-3000.0,0.000267,2]
[331392803,1720332642743,-3000.0,0.0002671,2]
[331392804,1720332642752,-3000.0,0.0002672,2]
[331392805,1720332642762,-3000.0,0.0002673,2]
[331392806,1720332642771,-3000.0,0.0002674,2]
[331392807,1720332642781,-3000.0,0.0002675,2]
[331392808,1720332642790,-3000.0,0.0002676,2]
[331392809,1720332642799,-3000.0,0.0002677,2]
[331392810,1720332642809,-3000.0,0.0002678,2]
[331392811,1720332642819,-3000.0,0.0002679,2]
[331392812,1720332642828,-3000.0,0.000268,2]
[331392813,1720332642838,-3000.0,0.0002681,2]
[331392814,1720332642848,-3000.0,0.0002682,2]
[331392815,1720332642858,-3000.0,0.0002683,2]
[331392816,1720332642868,-3000.0,0.0002684,2]
[331392817,1720332642878,-163.19521461,0.00026848,2]
[331392818,1720332642887,-3000.0,0.0002685,2]
[331392819,1720332642898,-3000.0,0.0002686,2]
[331392820,1720332642908,-1000.0,0.0002687,2]
[331392821,1720332642917,-3000.0,0.0002687,2]
[331392822,1720332642926,-3000.0,0.0002688,2]
[331392823,1720332642935,-3000.0,0.0002689,2]
[331392824,1720332642945,-3000.0,0.000269,2]
[331392825,1720332642954,-3000.0,0.0002691,2]
[331392826,1720332642963,-3000.0,0.0002692,2]
[331392827,1720332642973,-3000.0,0.0002693,2]
[331392828,1720332642982,-3000.0,0.0002694,2]
[331392829,1720332642992,-3000.0,0.0002695,2]
[331392830,1720332643003,-3000.0,0.0002696,2]
[331392831,1720332643014,-3365.551689,0.0002697,2]
[331392832,1720332643023,-167.555182,0.00027123,2]
[331392833,1720332643034,-167.555182,0.00027123,120]
[331392834,1720332643043,-750.0,0.00027195,2]
[331392835,1720332643054,-1969.47271307,0.00027258,2]
[331392836,1720332643063,-500.0,0.00027397,2]
[331392837,1720332643073,-292.64190241,0.00027397,2]
[331392838,1720332643082,-1152.0,0.00027633,2]
[331392839,1720332643092,-548.264223,0.00027699,2]
[331392840,1720332643104,-620.00000009,0.00027783,2]
[331392841,1720332643114,-268.44438923,0.00028,2]
[331392842,1720332643232,-153.0,0.00028219,2]
[331392843,1720332643242,-631.77588735,0.0002824,2]
[331392844,1720332643251,-150.0,0.00028412,2]
[331392845,1720332643260,-150.0,0.00028412,2]
[331392847,1720332643269,-166.098,0.00028412,2]
[331392848,1720332643278,-1405.0,0.00028412,2]
[331392850,1720332643288,-153.8397334,0.00028849,2]
[331392852,1720332643301,-153.0,0.00028849,2]
[331392854,1720332643311,-153.0,0.00028849,2]
[331392856,1720332643320,-306.0,0.00028849,2]
[331392858,1720332643330,-5501.213675,0.0002888,2]
[331392859,1720332643341,-153.0,0.00029046,2]
[331392860,1720332643351,-620.0,0.00029172,2]
[331392861,1720332643361,-154.74467129,0.00029813,2]
[331392862,1720332643373,-170.38232151,0.0003,4]
[331392863,1720332643384,-495.639058,0.0003,4]
[331392864,1720332643393,-642.9488218,0.0003,4]
[331392865,1720332643402,-233.28602306,0.0003,4]
[331392866,1720332643412,-403.13718572,0.0003,30]
[331392867,1720332643421,-155.67756694,0.0003,4]
[331392868,1720332643431,-244.0,0.0003,2]
[331392869,1720332643439,-9461.6047,0.00030106,30]
[331392870,1720332643449,-206.1814845,0.00030137,2]
[331392871,1720332643458,-206.1814845,0.00030137,2]
[331392872,1720332643469,-206.1814845,0.00030137,2]
[331392873,1720332643478,-163.283739,0.00030358,2]
[331392874,1720332643489,-1127.0,0.00030396,2]
[331392875,1720332643499,-620.0,0.0003063,2]
[331392876,1720332643508,-1969.47271307,0.00030937,2]
[331392877,1720332643517,-150.0,0.00031412,2]
[331392878,1720332643527,-150.0,0.00031412,2]
[331392879,1720332643536,-1405.0,0.00031412,2]
[331392880,1720332643546,-443.56603852,0.0003149,4]
[331392881,1720332643556,-154.76012181,0.0003149,4]
[331392882,1720332643566,-153.0,0.00031507,2]
[331392883,1720332643577,-315.32,0.00031925,2]
[331392884,1720332643587,-348.84,0.00031925,2]
[331392885,1720332643597,-210.9,0.00032,120]
[331392886,1720332643607,-620.0,0.00032162,2]
[331392887,1720332643618,-293.3880832,0.00032329,2]
[331392888,1720332643627,-293.3880832,0.00032329,2]
[331392889,1720332643636,-293.3880832,0.00032329,2]
[331392890,1720332643645,-293.3880832,0.00032329,2]
[331392891,1720332643655,-293.3880832,0.00032329,2]
[331392892,1720332643664,-293.3880832,0.00032329,2]
[331392893,1720332643674,-293.3880832,0.00032329,2]
[331392894,1720332643683,-293.3880832,0.00032329,2]
[331392895,1720332643692,-293.3880832,0.00032329,2]
[331392896,1720332643701,-293.3880832,0.00032329,2]
[331392897,1720332643711,-293.3880832,0.00032329,2]
[331392898,1720332643720,-293.3880832,0.00032329,2]
[331392899,1720332643730,-2448.85335951,0.000325,60]
[331392900,1720332643741,-1054.0,0.000325,5]
[331392901,1720332643751,-223.59847504,0.00032876,2]
[331392902,1720332643761,-500.0,0.00032876,2]
[331392903,1720332643773,-500.0,0.00032876,2]
[331392904,1720332643783,-8395.57,0.00032876,5]
[331392905,1720332643796,-504.77863038,0.00032876,5]
[331392906,1720332643805,-1350.26,0.00032876,2]
[331392907,1720332643815,-1350.26,0.00032876,2]
[331392908,1720332643824,-503.22438889,0.00032876,5]
[331392909,1720332643833,-1350.26,0.00032876,2]
[331392910,1720332643843,-1350.26,0.00032876,2]
[331392911,1720332643852,-1350.26,0.00032876,2]
[331392912,1720332643862,-1350.26,0.00032876,2]
[331392913,1720332643872,-1350.26,0.00032876,2]
[331392914,1720332643882,-1350.26,0.00032876,2]
[331392915,1720332643893,-1350.26,0.00032876,2]
[331392916,1720332643906,-1350.26,0.00032876,2]
[331392917,1720332643916,-1350.26,0.00032876,2]
[331392918,1720332643926,-1350.26,0.00032876,2]
[331392919,1720332643936,-1350.26,0.00032876,2]
[331392920,1720332643946,-1350.26,0.00032876,2]
[331392921,1720332643956,-1350.26,0.00032876,2]
[331392922,1720332643967,-1350.26,0.00032876,2]
[331392923,1720332643976,-1350.26,0.00032876,2]
[331392924,1720332643986,-1350.26,0.00032876,2]
[331392925,1720332643996,-1350.26,0.00032876,2]
[331392926,1720332644006,-1350.26,0.00032876,2]
[331392927,1720332644016,-1350.26,0.00032876,2]
[331392928,1720332644025,-1350.26,0.00032876,2]
[331392929,1720332644035,-1350.26,0.00032876,2]
[331392930,1720332644045,-1350.34126202,0.00032876,2]
[331392931,1720332644055,-506.56007007,0.00032876,5]
[331392932,1720332644064,-500.33496468,0.00032876,5]
[331392933,1720332644074,-512.78431244,0.00032876,5]
[331392934,1720332644084,-314.65612718,0.00032876,5]
[331392935,1720332644094,-500.0,0.00032876,5]
[331392936,1720332644103,-500.0,0.00032876,5]
[331392937,1720332644112,-236.11695377,0.00032876,5]
[331392938,1720332644122,-505.69009492,0.00032876,5]
[331392939,1720332644132,-560.00900889,0.00032876,5]
[331392940,1720332644141,-505.01307311,0.00032876,5]
[331392941,1720332644150,-506.28053379,0.00032876,5]
[331392942,1720332644160,-507.64347223,0.00032876,5]
[331392943,1720332644169,-506.27815768,0.00032876,5]
[331392944,1720332644179,-456.53234898,0.00032876,5]
[331392945,1720332644189,-504.00980582,0.00032876,5]
[331392946,1720332644199,-504.84863369,0.00032876,5]
[331392947,1720332644208,-500.0,0.00032876,5]
[331392948,1720332644218,-500.0,0.00032876,5]
[331392949,1720332644228,-500.0,0.00032876,5]
[331392950,1720332644238,-500.0,0.00032876,5]
[331392951,1720332644247,-500.0,0.00032876,5]
[331392952,1720332644257,-500.0,0.00032876,5]
[331392953,1720332644266,-500.0,0.00032876,5]
[331392954,1720332644277,-500.0,0.00032876,5]
[331392955,1720332644287,-500.0,0.00032876,5]
[331392956,1720332644303,-500.0,0.00032876,5]
[331392957,1720332644314,-154.22629044,0.00032876,5]
[331392958,1720332644325,-2000.0,0.00032876,5]
[331392959,1720332644337,-504.40897731,0.00032876,2]
[331392960,1720332644348,-337.14106052,0.00032876,5]
[331392961,1720332644359,-523.98,0.00032876,5]
[331392962,1720332644372,-200.0,0.00032876,5]
[331392963,1720332644382,-3859.64,0.00032876,5]
[331392964,1720332644391,-200.0,0.00032876,7]
[331392965,1720332644401,-500.0,0.00032876,5]
[331392966,1720332644410,-500.0,0.00032876,5]
[331392967,1720332644420,-500.0,0.00032876,20]
[331392968,1720332644429,-500.0,0.00032876,2]
[331392969,1720332644438,-500.0,0.00032876,14]
[331392970,1720332644447,-252.8180554,0.00032876,5]
[331392971,1720332644456,-500.0,0.00032876,30]
[331392972,1720332644465,-508.86984286,0.00032876,2]
[331392973,1720332644474,-1000.0,0.00032876,5]
[331392975,1720332644483,-500.0,0.00032876,7]
[331392976,1720332644492,-500.0,0.00032877,7]
[331392978,1720332644503,-500.0,0.00032877,7]
[331392979,1720332644513,-500.0,0.00032877,7]
[331392980,1720332644523,-500.0,0.00032877,7]
[331392981,1720332644533,-500.0,0.00032877,7]
[331392982,1720332644543,-500.0,0.00032877,7]
[331392983,1720332644552,-500.0,0.00032877,7]
[331392984,1720332644562,-500.0,0.00032877,7]
[331392985,1720332644572,-542.793734,0.00032877,7]
[331392986,1720332644582,-400.89167099,0.00032877,60]
[331392987,1720332644592,-150.0,0.00032877,2]
[331392988,1720332644601,-306.0,0.00032904,2]
[331392989,1720332644610,-153.9657163,0.00032904,2]
[331392990,1720332644619,-308.2919559,0.00032904,2]
[331392991,1720332644628,-752.16136177,0.00033,5]
[331392992,1720332644638,-244.0,0.00033,2]
[331392993,1720332644648,-244.0,0.00033,2]
[331392994,1720332644657,-158.0,0.00033,2]
[331392995,1720332644667,-4249.99405406,0.00033147,30]
[331392996,1720332644676,-500.0,0.0003315,2]
[331392997,1720332644686,-500.0,0.0003315,2]
[331392998,1720332644695,-8395.57,0.0003315,5]
[331392999,1720332644705,-500.0,0.0003315,5]
[331393000,1720332644714,-500.0,0.0003315,5]
[331393001,1720332644723,-500.0,0.0003315,5]
[331393002,1720332644733,-500.0,0.0003315,5]
[331393003,1720332644742,-500.0,0.0003315,5]
[331393004,1720332644752,-500.0,0.0003315,7]
[331393005,1720332644762,-2000.0,0.0003315,5]
[331393006,1720332644771,-523.98,0.0003315,5]
[331393007,1720332644780,-200.0,0.0003315,5]
[331393008,1720332644789,-3859.64,0.0003315,5]
[331393009,1720332644798,-200.0,0.0003315,7]
[331393010,1720332644807,-500.0,0.0003315,5]
[331393011,1720332644817,-500.0,0.0003315,5]
[331393012,1720332644826,-500.0,0.0003315,20]
[331393013,1720332644835,-500.0,0.0003315,2]
[331393014,1720332644845,-500.0,0.0003315,14]
[331393015,1720332644855,-500.0,0.0003315,30]
[331393016,1720332644864,-980.26130086,0.0003315,5]
[331393017,1720332644874,-153.0,0.00033151,2]
[331393018,1720332644884,-206.2377939,0.00033151,2]
[331393019,1720332644895,-153.0,0.00033151,2]
[331393020,1720332644905,-206.2377939,0.00033151,2]
[331393021,1720332644915,-306.0,0.00033151,2]
[331393022,1720332644924,-153.0,0.00033151,2]
[331393023,1720332644934,-153.0,0.00033151,2]
[331393024,1720332644944,-586.7761664,0.00033151,2]
[331393025,1720332644953,-293.3880832,0.00033151,2]
[331393026,1720332644964,-293.3880832,0.00033151,2]
[331393027,1720332644973,-293.3880832,0.00033151,2]
[331393028,1720332644983,-293.3880832,0.00033151,2]
[331393029,1720332644992,-293.3880832,0.00033151,2]
[331393030,1720332645001,-293.3880832,0.00033151,2]
[331393031,1720332645011,-293.3880832,0.00033151,2]
[331393032,1720332645020,-293.3880832,0.00033151,2]
[331393033,1720332645029,-293.3880832,0.00033151,2]
[331393034,1720332645038,-301.0864729,0.00033151,2]
[331393035,1720332645048,-285.2334308,0.00033151,2]
[331393036,1720332645057,-293.3880832,0.00033151,2]
[331393037,1720332645067,-153.0,0.00033151,2]
[331393038,1720332645076,-153.8013533,0.00033151,2]
[331393039,1720332645086,-153.0,0.00033151,2]
[331393040,1720332645095,-153.0,0.00033151,2]
[331393041,1720332645104,-153.0,0.00033151,2]
[331393042,1720332645209,-750.0,0.00033295,2]
[331393043,1720332645231,-1002.990517,0.000334,12]
[331393044,1720332645242,-500.0,0.00033424,2]
[331393045,1720332645252,-504.80491802,0.00033424,2]
[331393046,1720332645261,-8395.57,0.00033424,5]
[331393047,1720332645272,-500.0,0.00033424,5]
[331393048,1720332645282,-500.0,0.00033424,5]
[331393049,1720332645294,-500.0,0.00033424,5]
[331393050,1720332645304,-500.0,0.00033424,5]
[331393051,1720332645314,-500.0,0.00033424,5]
[331393052,1720332645324,-2000.0,0.00033424,5]
[331393053,1720332645335,-523.98,0.00033424,5]
[331393054,1720332645344,-200.0,0.00033424,5]
[331393055,1720332645354,-3557.16233009,0.00033424,5]
[331393061,1720332705920,10000.0,0.00015001,2]
[331393064,1720332935208,207.84,0.00014999,2]
[331393065,1720332957413,922.8597104,0.00014999,2]
[331393076,1720333532270,1266.38237034,0.00014999,2]
[331393079,1720333754349,154.99353915,0.00014999,2]
[331393099,1720333837005,-507.84,0.000189,2]
[331393228,1720333844942,-1325.89789167,0.000189,2]
[331393229,1720333844952,-806.06305046,0.0002,2]
[331393244,1720334498369,158.31,0.00015001,2]
[331393492,1720335171788,4573.95823309,0.00014999,2]
[331393493,1720335187623,7605.66738955,0.00014998,2]
[331393520,1720336107637,10000.0,0.00015001,2]
[331393521,1720336118648,10000.0,0.00015001,2]
[331393522,1720336130272,10000.0,0.00015001,2]
[331393524,1720336197348,10000.0,0.00015001,2]
[331393526,1720336232504,-491.14974063,0.00015995,2]
[331393529,1720336232513,-276.52061676,0.00016828,2]
[331393533,1720336232521,-274.132111,0.00018555,2]
[331393537,1720336232530,-3056.22981945,0.000189,2]
[331393541,1720336232539,-163.554719,0.00019178,2]
[331393545,1720336232548,-300.0,0.00019677,2]
[331393548,1720336232557,-6775.98199103,0.00019678,2]
[331393643,1720336238502,-18124.01800897,0.00019678,2]
[331393645,1720336238512,-1000.0,0.00019999,10]
[331393647,1720336238522,-3368.34162403,0.0002,2]
[331393649,1720336238532,-763.48993106,0.0002,2]
[331393651,1720336238542,-428.07800494,0.0002,2]
[331393653,1720336238552,-225.62340528,0.0002,2]
[331393655,1720336238562,-7217.07074627,0.0002,2]
[331393656,1720336238572,-6400.52793515,0.0002,2]
[331393658,1720336238582,-435.0,0.0002,2]
[331393660,1720336238591,-154.74467129,0.0002,2]
[331393662,1720336238601,-185.52479092,0.0002,2]
[331393664,1720336238610,-154.92132218,0.0002,2]
[331393666,1720336238620,-154.76012181,0.0002,2]
[331393668,1720336238629,-620.00000184,0.00021,2]
[331393670,1720336238639,-412.938379,0.00021096,2]
[331393672,1720336238650,-337.061621,0.00021096,2]
[331393674,1720336238660,-420.0,0.00021645,2]
[331393676,1720336238669,-1117.35505048,0.00021917,2]
[331393678,1720336238679,-443.56603852,0.00022,2]
[331393679,1720336238689,-163.19521461,0.00022,2]
[331393681,1720336238699,-250.35069097,0.00022,2]
[331393683,1720336238709,-620.00000009,0.0002205,2]
[331393685,1720336238719,-3970.43161859,0.00022941,2]
[331393687,1720336238729,-620.0,0.00023153,2]
[331393689,1720336238738,-620.0,0.00023363,2]
[331393691,1720336238747,-153.0,0.00023589,2]
[331393693,1720336238757,-587.0,0.00023809,2]
[331393695,1720336238767,-153.0,0.00023863,2]
[331393697,1720336238776,-3056.22981945,0.000239,2]
[331393699,1720336238786,-620.0,0.0002431,2]
[331393701,1720336238795,-620.0,0.00024531,2]
[331393703,1720336238805,-1000.0,0.0002549,10]
[331393705,1720336238814,-74661.0636307,0.00025491,3]
[331393707,1720336238824,-1000.0,0.000255,10]
[331393709,1720336238833,-1000.0,0.000255,10]
[331393711,1720336238844,-52119.39254387,0.00025501,2]
[331393713,1720336238854,-30000.0,0.00025501,2]
[331393715,1720336238863,-620.0,0.00025526,2]
[331393717,1720336238872,-1405.0,0.00025665,2]
[331393719,1720336238882,-3000.0,0.00026,2]
[331393721,1720336238891,-3000.0,0.0002601,2]
[331393723,1720336238902,-3000.0,0.0002602,2]
[331393725,1720336238911,-3000.0,0.0002603,2]
[331393727,1720336238920,-3000.0,0.0002604,2]
[331393728,1720336238930,-3000.0,0.0002605,2]
[331393730,1720336238940,-3000.0,0.0002606,2]
[331393732,1720336238949,-3000.0,0.0002607,2]
[331393734,1720336238959,-3000.0,0.0002608,2]
[331393736,1720336238969,-3000.0,0.0002609,2]
[331393738,1720336238979,-3000.0,0.000261,2]
[331393740,1720336238989,-3000.0,0.0002611,2]
[331393742,1720336238998,-3000.0,0.0002612,2]
[331393743,1720336239007,-275.966395,0.0002612,7]
[331393745,1720336239017,-37330.5318154,0.0002612,3]
[331393746,1720336239028,-3000.0,0.0002613,2]
[331393747,1720336239038,-151.0,0.0002613,7]
[331393748,1720336239048,-151.0,0.0002613,7]
[331393749,1720336239058,-151.0,0.0002613,7]
[331393750,1720336239068,-151.421555,0.0002613,7]
[331393751,1720336239078,-151.0,0.0002613,7]
[331393752,1720336239088,-151.0,0.0002613,7]
[331393753,1720336239098,-207.786841,0.0002613,7]
[331393754,1720336239108,-151.0,0.0002613,7]
[331393755,1720336239118,-275.898997,0.0002613,7]
[331393756,1720336239128,-275.898997,0.0002613,7]
[331393757,1720336239138,-257.146742,0.0002613,7]
[331393758,1720336239149,-257.146742,0.0002613,7]
[331393759,1720336239159,-272.907309,0.0002613,7]
[331393760,1720336239170,-151.0,0.0002613,7]
[331393761,1720336239184,-151.0,0.0002613,7]
[331393762,1720336239195,-3000.0,0.0002614,2]
[331393763,1720336239205,-3000.0,0.0002615,2]
[331393764,1720336239216,-3000.0,0.0002616,2]
[331393765,1720336239226,-3000.0,0.0002617,2]
[331393766,1720336239236,-3000.0,0.0002618,2]
[331393767,1720336239247,-434.17180384,0.00026188,2]
[331393768,1720336239257,-500.0,0.00026188,2]
[331393769,1720336239268,-176.69668109,0.00026188,2]
[331393770,1720336239277,-500.0,0.00026188,2]
[331393771,1720336239287,-500.0,0.00026188,2]
[331393772,1720336239296,-500.0,0.00026188,2]
[331393773,1720336239305,-370.81686743,0.00026188,2]
[331393774,1720336239315,-500.0,0.00026188,2]
[331393775,1720336239325,-500.0,0.00026188,2]
[331393776,1720336239336,-500.0,0.00026188,2]
[331393777,1720336239346,-517.33975982,0.00026188,2]
[331393778,1720336239356,-3000.0,0.0002619,2]
[331393779,1720336239366,-823.0,0.0002619,2]
[331393780,1720336239376,-3000.0,0.000262,2]
[331393781,1720336239387,-3000.0,0.0002621,2]
[331393782,1720336239401,-3000.0,0.0002622,2]
[331393783,1720336239416,-3000.0,0.0002623,2]
[331393784,1720336239426,-3000.0,0.0002624,2]
[331393785,1720336239436,-3000.0,0.0002625,2]
[331393786,1720336239447,-3000.0,0.0002626,2]
[331393787,1720336239459,-275.966395,0.0002626,7]
[331393788,1720336239470,-37330.5318154,0.0002626,3]
[331393789,1720336239480,-3000.0,0.0002627,2]
[331393790,1720336239492,-3000.0,0.0002628,2]
[331393791,1720336239503,-3000.0,0.0002629,2]